fUSD/lending_fUSD_20250414
["ID","MTS","AMOUNT","RATE_DAILY","PERIOD"]
[357997708,1744645916890,-2114.28,0.00017995,2]
[357997709,1744645916900,-2114.28,0.00017995,2]
[357997710,1744645916910,-2114.28,0.00017995,2]
[357997711,1744645916925,-2114.50475695,0.00017995,2]
[357997712,1744645916935,-972.62,0.00017995,2]
[357997713,1744645916946,-972.62,0.00017995,2]
[357997714,1744645916956,-972.62,0.00017995,2]
[357997715,1744645916971,-972.62,0.00017995,2]
[357997716,1744645916981,-972.62,0.00017995,2]
[357997717,1744645916991,-972.62,0.00017995,2]
[357997718,1744645917002,-972.62,0.00017995,2]
[357997719,1744645917011,-972.71,0.00017995,2]
[357997720,1744645917021,-751.824166,0.00017995,2]
[357997721,1744645917031,-1242.69,0.00017995,2]
[357997722,1744645917042,-1242.69,0.00017995,2]
[357997723,1744645917052,-1242.69,0.00017995,2]
[357997724,1744645917062,-751.824166,0.00017995,2]
[357997725,1744645917072,-1242.69,0.00017995,2]
[357997726,1744645917082,-1242.69,0.00017995,2]
[357997727,1744645917092,-1242.69,0.00017995,2]
[357997728,1744645917102,-1242.69,0.00017995,2]
[357997729,1744645917112,-1242.80511625,0.00017995,2]
[357997730,1744645917122,-802.2,0.00017995,2]
[357997731,1744645917131,-802.2,0.00017995,2]
[357997732,1744645917140,-802.2,0.00017995,2]
[357997733,1744645917150,-802.2,0.00017995,2]
[357997734,1744645917159,-802.2,0.00017995,2]
[357997735,1744645917170,-802.2,0.00017995,2]
[357997736,1744645917180,-802.2,0.00017995,2]
[357997737,1744645917189,-802.43,0.00017995,2]
[357997738,1744645917198,-597.24,0.00017995,2]
[357997739,1744645917207,-597.24,0.00017995,2]
[357997740,1744645917217,-597.24,0.00017995,2]
[357997741,1744645917226,-597.24,0.00017995,2]
[357997742,1744645917235,-597.24,0.00017995,2]
[357997743,1744645917245,-597.24,0.00017995,2]
[357997744,1744645917254,-597.24,0.00017995,2]
[357997745,1744645917264,-597.34184243,0.00017995,2]
[357997746,1744645917274,-289.78196,0.00017995,2]
[357997747,1744645917284,-544.7,0.00017995,2]
[357997748,1744645917294,-544.7,0.00017995,2]
[357997749,1744645917304,-544.7,0.00017995,2]
[357997750,1744645917314,-544.7,0.00017995,2]
[357997751,1744645917324,-544.7,0.00017995,2]
[357997752,1744645917334,-544.7,0.00017995,2]
[357997753,1744645917344,-544.7,0.00017995,2]
[357997754,1744645917354,-544.82,0.00017995,2]
[357997755,1744645917364,-543.7,0.00017995,2]
[357997756,1744645917374,-543.7,0.00017995,2]
[357997757,1744645917384,-543.7,0.00017995,2]
[357997758,1744645917394,-543.7,0.00017995,2]
[357997759,1744645917403,-543.7,0.00017995,2]
[357997760,1744645917413,-543.7,0.00017995,2]
[357997761,1744645917424,-543.7,0.00017995,2]
[357997762,1744645917433,-543.92,0.00017995,2]
[357997763,1744645917443,-527.09,0.00017995,2]
[357997764,1744645917452,-500.0,0.00017995,2]
[357997765,1744645917462,-527.09,0.00017995,2]
[357997766,1744645917471,-500.0,0.00017995,2]
[357997767,1744645917480,-527.09,0.00017995,2]
[357997768,1744645917489,-527.09,0.00017995,2]
[357997769,1744645917499,-500.0,0.00017995,2]
[357997770,1744645917517,-527.09,0.00017995,2]
[357997771,1744645917526,-527.09,0.00017995,2]
[357997772,1744645917535,-500.0,0.00017995,2]
[357997773,1744645917545,-527.09,0.00017995,2]
[357997774,1744645917555,-169.1093352,0.00017995,2]
[357997775,1744645917564,-527.28604822,0.00017995,2]
[357997776,1744645917573,-550.98,0.00017995,2]
[357997777,1744645917584,-550.98,0.00017995,2]
[357997778,1744645917594,-550.98,0.00017995,2]
[357997779,1744645917603,-550.98,0.00017995,2]
[357997780,1744645917613,-550.98,0.00017995,2]
[357997781,1744645917623,-550.98,0.00017995,2]
[357997782,1744645917632,-550.98,0.00017995,2]
[357997783,1744645917642,-551.0,0.00017995,2]
[357997784,1744645917652,-1037.56,0.00017995,2]
[357997785,1744645917660,-1037.56,0.00017995,2]
[357997786,1744645917672,-1037.56,0.00017995,2]
[357997787,1744645917682,-1037.56,0.00017995,2]
[357997788,1744645917691,-1037.56,0.00017995,2]
[357997789,1744645917700,-1037.56,0.00017995,2]
[357997790,1744645917710,-1037.56,0.00017995,2]
[357997791,1744645917720,-1037.70090254,0.00017995,2]
[357997792,1744645917729,-500.0,0.00017996,2]
[357997793,1744645917739,-500.0,0.00017996,2]
[357997794,1744645917748,-500.0,0.00017996,2]
[357997795,1744645917758,-500.0,0.00017996,2]
[357997796,1744645917767,-506.47285493,0.00017996,2]
[357997797,1744645917777,-528.41,0.00017996,2]
[357997798,1744645917786,-528.41,0.00017996,2]
[357997799,1744645917795,-528.41,0.00017996,2]
[357997800,1744645917805,-528.41,0.00017996,2]
[357997801,1744645917815,-528.41,0.00017996,2]
[357997802,1744645917825,-528.41,0.00017996,2]
[357997803,1744645917835,-528.41,0.00017996,2]
[357997804,1744645917845,-500.0,0.00017996,2]
[357997805,1744645917855,-477.26,0.00017996,2]
[357997806,1744645917865,-1451.47,0.00017996,2]
[357997807,1744645917874,-1451.47,0.00017996,2]
[357997808,1744645917883,-1451.47,0.00017996,2]
[357997809,1744645917894,-500.0,0.00017996,2]
[357997810,1744645917903,-1451.47,0.00017996,2]
[357997811,1744645917914,-554.19,0.00017996,2]
[357997812,1744645917924,-1451.47,0.00017996,2]
[357997813,1744645917934,-1451.47,0.00017996,2]
[357997814,1744645917944,-1451.64589353,0.00017996,2]
[357997815,1744645917954,-500.0,0.00017996,2]
[357997816,1744645917964,-500.0,0.00017996,2]
[357997817,1744645917974,-317.01,0.00017996,2]
[357997818,1744645917983,-723.43,0.00017996,2]
[357997819,1744645917992,-723.43,0.00017996,2]
[357997820,1744645918002,-723.43,0.00017996,2]
[357997821,1744645918011,-723.43,0.00017996,2]
[357997822,1744645918021,-723.43,0.00017996,2]
[357997823,1744645918031,-723.43,0.00017996,2]
[357997824,1744645918040,-723.47611256,0.00017996,2]
[357997825,1744645918050,-579.56,0.00017996,2]
[357997826,1744645918060,-579.56,0.00017996,2]
[357997827,1744645918069,-579.56,0.00017996,2]
[357997828,1744645918078,-579.56,0.00017996,2]
[357997829,1744645918088,-579.56,0.00017996,2]
[357997830,1744645918097,-579.56,0.00017996,2]
[357997831,1744645918106,-579.64,0.00017996,2]
[357997832,1744645918116,-1074.66,0.00017996,2]
[357997833,1744645918125,-1074.66,0.00017996,2]
[357997834,1744645918135,-1074.66,0.00017996,2]
[357997835,1744645918145,-1074.66,0.00017996,2]
[357997836,1744645918155,-1074.66,0.00017996,2]
[357997837,1744645918166,-1074.66,0.00017996,2]
[357997838,1744645918176,-1074.70062328,0.00017996,2]
[357997839,1744645918187,-1435.33,0.00017996,2]
[357997840,1744645918198,-1435.33,0.00017996,2]
[357997841,1744645918209,-1435.33,0.00017996,2]
[357997842,1744645918219,-1435.33,0.00017996,2]
[357997843,1744645918229,-1435.33,0.00017996,2]
[357997844,1744645918239,-1435.33,0.00017996,2]
[357997845,1744645918249,-1435.35141971,0.00017996,2]
[357997846,1744645918259,-581.58,0.00017996,2]
[357997847,1744645918269,-581.58,0.00017996,2]
[357997848,1744645918279,-581.58,0.00017996,2]
[357997849,1744645918290,-581.58,0.00017996,2]
[357997850,1744645918300,-581.58,0.00017996,2]
[357997851,1744645918310,-581.58,0.00017996,2]
[357997852,1744645918320,-581.7963074,0.00017996,2]
[357997853,1744645918330,-517.16,0.00017996,2]
[357997854,1744645918340,-517.16,0.00017996,2]
[357997855,1744645918350,-517.16,0.00017996,2]
[357997856,1744645918360,-517.16,0.00017996,2]
[357997857,1744645918369,-517.16,0.00017996,2]
[357997858,1744645918379,-517.16,0.00017996,2]
[357997859,1744645918389,-517.35803248,0.00017996,2]
[357997860,1744645918398,-302.87163382,0.00017996,2]
[357997861,1744645918408,-500.0,0.00017996,2]
[357997862,1744645918420,-437.15825309,0.00017996,2]
[357997863,1744645918429,-3679.668316,0.00017996,2]
[357997864,1744645918440,-3679.668321,0.00017996,2]
[357997865,1744645918450,-504.613438,0.00017996,2]
[357997866,1744645918459,-504.613444,0.00017996,2]
[357997867,1744645918470,-275.37075855,0.00017998,2]
[357997868,1744645918480,-151.0,0.00017998,2]
[357997869,1744645918489,-1000.0,0.00017999,2]
[357997870,1744645918504,-1000.0,0.00017999,2]
[357997871,1744645918515,-1000.0,0.00017999,2]
[357997872,1744645918524,-1000.0,0.00017999,2]
[357997873,1744645918535,-1000.0,0.00017999,2]
[357997874,1744645918545,-1000.0,0.00017999,2]
[357997875,1744645918555,-1000.0,0.00017999,2]
[357997876,1744645918564,-1000.0,0.00017999,2]
[357997877,1744645918574,-1000.0,0.00017999,2]
[357997878,1744645918584,-1000.0,0.00017999,2]
[357997879,1744645918594,-598.26047913,0.00017999,2]
[357997880,1744645918603,-1002.4726,0.00017999,2]
[357997881,1744645918612,-9213224.37632553,0.00018,2]
[357997882,1744645918809,-6781.65911273,0.00018,2]
[357997883,1744645918835,-257.45266097,0.00017992,2]
[357997884,1744645918844,-582.54733903,0.00018,2]
[357997885,1744645924388,350.0,0.00017843,12]
[357997886,1744645924507,500.0,0.00017162,2]
[357997887,1744645959917,-518.74317875,0.00017794,2]
[357997888,1744646013287,4225.66,0.00017055,2]
[357997889,1744646015329,-2422.58692125,0.00017794,2]
[357997890,1744646015355,-565.8645223,0.00017795,2]
[357997891,1744646019590,5774.34,0.00017055,2]
[357997892,1744646019625,10000.0,0.00017055,2]
[357997893,1744646019652,8125.66,0.00017055,2]
[357997894,1744646037338,250.0,0.00017033,2]
[357997895,1744646041747,-1050.70613389,0.00017793,2]
[357997896,1744646046778,-1050.70613388,0.00017805,2]
[357997897,1744646094665,200.0,0.00016931,7]
[357997898,1744646122725,-188.89587865,0.00017794,2]
[357997899,1744646162805,-250.0,0.00017794,2]
[357997900,1744646163914,-528.64460577,0.00017794,2]
[357997901,1744646167766,1176.15,0.00016917,2]
[357997902,1744646222717,448.19,0.00016994,2]
[357997903,1744646222745,1675.49,0.00016994,2]
[357997904,1744646222777,-190.17704303,0.00017705,2]
[357997905,1744646222804,-109.82295697,0.00017793,2]
[357997906,1744646282147,-172.0,0.00017793,2]
[357997907,1744646384946,-182.19592974,0.0001769,2]
[357997908,1744646415120,-182.195929,0.00017601,2]
[357997909,1744646449010,6980.49,0.00016934,2]
[357997910,1744646452513,1344.02,0.00016934,2]
[357997911,1744646452537,655.98,0.00016934,2]
[357997912,1744646453154,-155.369824,0.0001769,2]
[357997913,1744646493309,-300.0,0.00017601,2]
[357997914,1744646522145,-37.565753,0.00017601,2]
[357997915,1744646522175,-127.70881815,0.00017697,2]
[357997916,1744646531177,1185.72,0.00015017,2]
[357997917,1744646531428,1185.72,0.00017281,2]
[357997918,1744646531839,619.48,0.00016935,2]
[357997919,1744646584901,-122.29118185,0.00017697,2]
[357997920,1744646584927,-377.70881815,0.00017792,2]
[357997921,1744646586255,150.0,0.00016905,2]
[357997922,1744646622230,201.3,0.00016875,2]
[357997923,1744646625207,200.0,0.00016904,2]
[357997925,1744646672145,186.37,0.00016875,2]
[357997926,1744646686187,-230.82,0.000177,2]
[357997927,1744646696509,-230.82,0.00017611,2]
[357997928,1744646696615,200.0,0.00016874,2]
[357997929,1744646780897,175.5,0.00017375,2]
[357997930,1744646833474,204.3,0.00016869,2]
[357997931,1744646879800,393.18,0.00016869,2]
[357997932,1744646889732,532.0,0.00017504,2]
[357997933,1744646928022,1000.0,0.00016885,2]
[357997934,1744646959188,-769.18,0.000177,2]
[357997935,1744646959213,-990.73204796,0.00017792,2]
[357997936,1744646961490,-300.0,0.00017793,2]
[357997937,1744646961563,-2727.17030687,0.00017794,2]
[357997938,1744646961644,-3027.17030687,0.00017794,2]
[357997939,1744646961718,-3027.17030687,0.00017794,2]
[357997940,1744646962084,-3027.17030687,0.00017794,2]
[357997941,1744646962166,-1727.1610881,0.00017794,2]
[357997942,1744646962226,-1300.00921877,0.000178,2]
[357997943,1744646962292,-3027.17030687,0.000178,2]
[357997944,1744646962385,-3027.17030687,0.000178,2]
[357997945,1744646962462,-3027.17030687,0.000178,2]
[357997946,1744646962590,-2.44513061,0.000178,2]
[357997947,1744646962650,-1000.0,0.000178,2]
[357997948,1744646962715,-1368.4408661,0.00017803,2]
[357997949,1744646962778,-656.28431016,0.00017814,2]
[357997950,1744646962887,-712.15655594,0.00017814,2]
[357997951,1744646962952,-1368.4408661,0.00017826,2]
[357997952,1744646963014,-946.57288483,0.00017837,2]
[357997953,1744646963097,-421.86798127,0.00017837,2]
[357997954,1744646963163,-1368.4408661,0.00017848,2]
[357997955,1744646963228,-550.0,0.00017849,2]
[357997956,1744646963294,-686.8614595,0.0001785,2]
[357997957,1744646975666,518.74317875,0.00017792,2]
[357997958,1744646986283,-3693.14777439,0.0001785,2]
[357997959,1744646986406,-1866.54253683,0.0001785,2]
[357997960,1744646986472,-1368.4408661,0.00017859,2]
[357997961,1744646986547,-458.16437146,0.00017871,2]
[357997962,1744646986660,-910.27649464,0.00017871,2]
[357997963,1744646986726,-500.0,0.00017873,2]
[357997964,1744646986792,-500.0,0.00017873,2]
[357997965,1744646986853,-165.27457115,0.00017873,2]
[357997966,1744646986917,-1617.5967086,0.00017874,2]
[357997967,1744646987013,-3693.14777439,0.00017874,2]
[357997968,1744646987075,-3693.14777439,0.00017874,2]
[357997969,1744646987151,-3496.10774262,0.00017874,2]
[357997970,1744646987212,-197.04003177,0.00017882,2]
[357997971,1744646987299,-1171.40083433,0.00017882,2]
[357997972,1744646987366,-1157.24567219,0.00017882,2]
[357997973,1744646990743,158.75,0.00016973,2]
[357997974,1744647008116,436.64053329,0.00017598,2]
[357997975,1744647014537,1524.3180875,0.00017792,2]
[357997976,1744647031858,-1524.31808744,0.00017803,2]
[357997977,1744647031868,-1188.89925597,0.00017814,2]
[357997978,1744647031881,-335.41883147,0.00017814,2]
[357997980,1744647031891,-1524.31808744,0.00017825,2]
[357997983,1744647031901,-300.0,0.00017881,2]
[357997986,1744647031911,-201.63,0.00017882,2]
[357997988,1744647031922,-980.0040119,0.00017882,2]
[357997989,1744647031935,-4614.66753364,0.00017882,2]
[357997990,1744647032001,-3188.92311074,0.00017882,2]
[357997991,1744647032013,-443.42,0.00017882,2]
[357997992,1744647032024,-307.38,0.00017882,2]
[357997993,1744647032153,-1808.35967153,0.00017882,2]
[357997994,1744647032163,-162.64403977,0.00017883,2]
[357997995,1744647032173,-500.0,0.00017891,2]
[357997996,1744647032182,-500.0,0.00017891,2]
[357997997,1744647032192,-500.0,0.00017891,2]
[357997998,1744647032202,-500.0,0.00017891,2]
[357997999,1744647032211,-500.0,0.00017891,2]
[357998000,1744647032221,-529.3,0.00017891,2]
[357998001,1744647032231,-500.0,0.00017891,2]
[357998002,1744647032241,-500.0,0.00017891,2]
[357998003,1744647032251,-629.23,0.00017891,2]
[357998004,1744647032261,-500.0,0.00017891,2]
[357998005,1744647032270,-191.94,0.00017891,2]
[357998006,1744647032280,-500.0,0.00017891,2]
[357998007,1744647032290,-500.0,0.00017891,2]
[357998008,1744647032300,-618.82,0.00017891,2]
[357998009,1744647032309,-500.0,0.00017891,2]
[357998010,1744647032319,-500.0,0.00017891,2]
[357998011,1744647032329,-268.96,0.00017891,2]
[357998012,1744647032342,-500.0,0.00017891,2]
[357998013,1744647032353,-500.0,0.00017891,2]
[357998014,1744647032362,-575.45,0.00017891,2]
[357998015,1744647032372,-611.99,0.00017891,2]
[357998017,1744647032382,-500.0,0.00017891,2]
[357998019,1744647032392,-213.02,0.00017891,2]
[357998022,1744647032402,-500.0,0.00017891,2]
[357998025,1744647032411,-500.0,0.00017891,2]
[357998028,1744647032421,-440.08,0.00017891,2]
[357998031,1744647032431,-414.60249472,0.00017891,2]
[357998033,1744647032443,-85.39750528,0.00017891,2]
[357998035,1744647032452,-373.75636498,0.00017891,2]
[357998037,1744647032462,-500.0,0.00017891,2]
[357998039,1744647032472,-490.08,0.00017891,2]
[357998041,1744647032482,-500.0,0.00017891,2]
[357998043,1744647032493,-500.0,0.00017891,2]
[357998047,1744647032727,-500.0,0.00017891,2]
[357998048,1744647032738,-500.0,0.00017891,2]
[357998049,1744647032761,-500.0,0.00017891,2]
[357998050,1744647032787,-500.0,0.00017891,2]
[357998051,1744647032804,-500.0,0.00017891,2]
[357998052,1744647032816,-500.0,0.00017891,2]
[357998053,1744647032826,-630.56,0.00017891,2]
[357998054,1744647032836,-500.0,0.00017891,2]
[357998055,1744647032853,-347.84113651,0.00017891,2]
[357998056,1744647032884,-152.15886349,0.00017891,2]
[357998057,1744647032894,-500.0,0.00017891,2]
[357998058,1744647032904,-500.0,0.00017891,2]
[357998059,1744647032915,-500.0,0.00017891,2]
[357998060,1744647032928,-500.0,0.00017891,2]
[357998061,1744647032938,-500.0,0.00017891,2]
[357998062,1744647032949,-265.02,0.00017891,2]
[357998063,1744647032959,-500.0,0.00017891,2]
[357998064,1744647032970,-500.0,0.00017891,2]
[357998065,1744647032980,-500.0,0.00017891,2]
[357998066,1744647032991,-500.0,0.00017891,2]
[357998067,1744647033001,-500.0,0.00017891,2]
[357998068,1744647033011,-500.0,0.00017891,2]
[357998069,1744647033021,-183.07776595,0.00017891,2]
[357998070,1744647033031,-12500.0,0.00017891,2]
[357998071,1744647033041,-500.0,0.00017892,2]
[357998072,1744647033051,-500.0,0.00017892,2]
[357998073,1744647033061,-500.0,0.00017892,2]
[357998074,1744647033072,-500.0,0.00017892,2]
[357998075,1744647033082,-500.0,0.00017892,2]
[357998076,1744647033095,-500.0,0.00017892,2]
[357998077,1744647033105,-500.0,0.00017892,2]
[357998078,1744647033116,-500.0,0.00017892,2]
[357998079,1744647033127,-500.0,0.00017892,2]
[357998080,1744647033138,-500.0,0.00017892,2]
[357998081,1744647033149,-500.0,0.00017892,2]
[357998082,1744647033159,-500.0,0.00017892,2]
[357998083,1744647033169,-500.0,0.00017892,2]
[357998084,1744647033188,-500.0,0.00017892,2]
[357998085,1744647033199,-500.0,0.00017892,2]
[357998086,1744647033227,-500.0,0.00017892,2]
[357998087,1744647033252,-500.0,0.00017892,2]
[357998088,1744647033270,-500.0,0.00017892,2]
[357998089,1744647033288,-554.05,0.00017892,2]
[357998090,1744647033301,-500.0,0.00017892,2]
[357998091,1744647033312,-500.0,0.00017892,2]
[357998092,1744647033323,-500.0,0.00017892,2]
[357998093,1744647033353,-500.0,0.00017892,2]
[357998094,1744647033365,-620.38,0.00017892,2]
[357998095,1744647033378,-500.0,0.00017892,2]
[357998096,1744647033390,-500.0,0.00017892,2]
[357998097,1744647033403,-500.0,0.00017892,2]
[357998098,1744647033414,-500.0,0.00017892,2]
[357998099,1744647033424,-283.67171339,0.00017892,2]
[357998100,1744647033435,-500.0,0.00017892,2]
[357998101,1744647033446,-500.0,0.00017892,2]
[357998102,1744647033457,-500.0,0.00017892,2]
[357998103,1744647033468,-500.0,0.00017892,2]
[357998104,1744647033478,-500.0,0.00017892,2]
[357998105,1744647033488,-500.0,0.00017892,2]
[357998106,1744647033498,-500.0,0.00017892,2]
[357998107,1744647033509,-500.0,0.00017892,2]
[357998108,1744647033520,-500.0,0.00017892,2]
[357998109,1744647033531,-500.0,0.00017892,2]
[357998110,1744647033542,-500.0,0.00017892,2]
[357998111,1744647033553,-500.0,0.00017892,2]
[357998112,1744647033563,-539.9119914,0.00017892,2]
[357998113,1744647033573,-500.0,0.00017892,2]
[357998114,1744647033583,-500.0,0.00017892,2]
[357998115,1744647033595,-500.0,0.00017892,2]
[357998116,1744647033606,-500.0,0.00017892,2]
[357998117,1744647033616,-500.0,0.00017892,2]
[357998118,1744647033627,-500.0,0.00017892,2]
[357998119,1744647033638,-500.0,0.00017892,2]
[357998120,1744647033648,-500.0,0.00017892,2]
[357998121,1744647033659,-500.0,0.00017892,2]
[357998122,1744647033670,-500.0,0.00017892,2]
[357998123,1744647033681,-500.0,0.00017892,2]
[357998124,1744647033691,-500.0,0.00017892,2]
[357998125,1744647033701,-500.0,0.00017892,2]
[357998126,1744647033712,-500.0,0.00017892,2]
[357998127,1744647033723,-500.0,0.00017892,2]
[357998128,1744647033738,-527.66009093,0.00017892,2]
[357998129,1744647033763,-501.50399477,0.00017892,2]
[357998130,1744647033793,-500.0,0.00017892,2]
[357998131,1744647033805,-500.0,0.00017892,2]
[357998132,1744647033822,-500.0,0.00017892,2]
[357998133,1744647033834,-500.0,0.00017892,2]
[357998134,1744647033867,-500.0,0.00017892,2]
[357998135,1744647033879,-500.0,0.00017892,2]
[357998136,1744647033897,-500.0,0.00017892,2]
[357998137,1744647033909,-500.0,0.00017892,2]
[357998138,1744647033921,-500.0,0.00017892,2]
[357998139,1744647033933,-500.0,0.00017892,2]
[357998140,1744647033944,-500.0,0.00017892,2]
[357998141,1744647033955,-547.22802066,0.00017892,2]
[357998142,1744647033966,-500.0,0.00017892,2]
[357998143,1744647033978,-594.69514352,0.00017892,2]
[357998144,1744647033989,-500.0,0.00017892,2]
[357998145,1744647034001,-500.0,0.00017892,2]
[357998146,1744647034012,-500.0,0.00017892,2]
[357998147,1744647034023,-505.34886597,0.00017892,2]
[357998148,1744647034034,-589.48975717,0.00017892,2]
[357998149,1744647034045,-500.0,0.00017892,2]
[357998150,1744647034056,-500.0,0.00017892,2]
[357998151,1744647034067,-500.0,0.00017892,2]
[357998152,1744647034077,-500.0,0.00017892,2]
[357998153,1744647034087,-501.90361517,0.00017892,2]
[357998154,1744647034106,-500.0,0.00017892,2]
[357998155,1744647034117,-500.0,0.00017892,2]
[357998156,1744647034127,-500.0,0.00017892,2]
[357998157,1744647034138,-500.0,0.00017892,2]
[357998158,1744647034149,-500.0,0.00017892,2]
[357998159,1744647034160,-500.0,0.00017892,2]
[357998160,1744647034172,-500.0,0.00017892,2]
[357998161,1744647034183,-500.0,0.00017892,2]
[357998162,1744647034194,-500.0,0.00017892,2]
[357998163,1744647034205,-500.0,0.00017892,2]
[357998164,1744647034216,-500.0,0.00017892,2]
[357998165,1744647034226,-442.16445897,0.00017892,2]
[357998166,1744647034236,-500.0,0.00017892,2]
[357998167,1744647034246,-500.0,0.00017892,2]
[357998168,1744647034257,-500.0,0.00017892,2]
[357998169,1744647034268,-500.0,0.00017892,2]
[357998170,1744647034278,-500.0,0.00017892,2]
[357998171,1744647034289,-500.0,0.00017892,2]
[357998172,1744647034299,-500.0,0.00017892,2]
[357998173,1744647034311,-512.67832416,0.00017892,2]
[357998174,1744647034320,-500.0,0.00017892,2]
[357998175,1744647034331,-500.0,0.00017892,2]
[357998176,1744647034346,-500.0,0.00017892,2]
[357998177,1744647034357,-515.52329973,0.00017892,2]
[357998178,1744647034368,-298.04157827,0.00017892,2]
[357998179,1744647034379,-500.0,0.00017892,2]
[357998180,1744647034390,-500.0,0.00017892,2]
[357998181,1744647034400,-500.0,0.00017892,2]
[357998182,1744647034411,-500.0,0.00017892,2]
[357998183,1744647034421,-503.82602837,0.00017892,2]
[357998184,1744647034432,-500.0,0.00017892,2]
[357998185,1744647034442,-500.0,0.00017892,2]
[357998186,1744647034453,-500.0,0.00017892,2]
[357998187,1744647034463,-500.0,0.00017892,2]
[357998188,1744647034474,-500.0,0.00017892,2]
[357998189,1744647034484,-500.0,0.00017892,2]
[357998190,1744647034494,-500.0,0.00017892,2]
[357998191,1744647034504,-557.99242419,0.00017892,2]
[357998192,1744647034514,-500.0,0.00017892,2]
[357998193,1744647034525,-500.0,0.00017892,2]
[357998194,1744647034535,-500.0,0.00017892,2]
[357998195,1744647034545,-500.0,0.00017892,2]
[357998196,1744647034556,-500.0,0.00017892,2]
[357998197,1744647034566,-500.0,0.00017892,2]
[357998198,1744647034576,-500.0,0.00017892,2]
[357998199,1744647034587,-500.0,0.00017892,2]
[357998200,1744647034600,-500.0,0.00017892,2]
[357998201,1744647034610,-512.16,0.00017892,2]
[357998202,1744647034620,-500.0,0.00017892,2]
[357998203,1744647034630,-500.0,0.00017892,2]
[357998204,1744647034640,-500.0,0.00017892,2]
[357998205,1744647034650,-500.0,0.00017892,2]
[357998206,1744647034660,-500.0,0.00017892,2]
[357998207,1744647034671,-500.0,0.00017892,2]
[357998208,1744647034681,-500.0,0.00017892,2]
[357998209,1744647034691,-500.0,0.00017892,2]
[357998210,1744647034702,-500.0,0.00017892,2]
[357998211,1744647034711,-500.0,0.00017892,2]
[357998212,1744647034722,-500.0,0.00017892,2]
[357998213,1744647034732,-500.0,0.00017892,2]
[357998214,1744647034742,-500.0,0.00017892,2]
[357998215,1744647034752,-500.0,0.00017892,2]
[357998216,1744647034762,-500.0,0.00017892,2]
[357998217,1744647034772,-500.0,0.00017892,2]
[357998218,1744647034783,-500.0,0.00017892,2]
[357998219,1744647034793,-500.0,0.00017892,2]
[357998220,1744647034803,-500.0,0.00017892,2]
[357998221,1744647034814,-500.0,0.00017892,2]
[357998222,1744647034823,-500.0,0.00017892,2]
[357998223,1744647034832,-500.0,0.00017892,2]
[357998224,1744647034845,-500.0,0.00017892,2]
[357998225,1744647034855,-500.0,0.00017892,2]
[357998226,1744647034865,-500.0,0.00017892,2]
[357998227,1744647034876,-500.0,0.00017892,2]
[357998228,1744647034888,-500.0,0.00017892,2]
[357998229,1744647034898,-500.0,0.00017892,2]
[357998230,1744647034907,-500.0,0.00017892,2]
[357998231,1744647034917,-500.0,0.00017892,2]
[357998232,1744647034927,-500.0,0.00017892,2]
[357998233,1744647034937,-500.0,0.00017892,2]